[Event "*** Titled Tuesday Blitz"]
[Site "Chess.com"]
[Date "2021.04.27"]
[Round "4"]
[White "chessbia"]
[Black "dmitrijiIM"]
[Result "1-0"]
[WhiteElo "2340"]
[BlackElo "2555"]
[TimeControl "180+1"]
[EndTime "10:39:37 PDT"]
[Termination "chessbia won on time"]

1. d4 {[%clk 0:03:00.9]} 1... Nf6 {[%clk 0:02:57.4]} 2. c4 {[%clk 0:03:01.1]}
2... g6 {[%clk 0:02:57.8]} 3. Nc3 {[%clk 0:03:01.1]} 3... Bg7 {[%clk 0:02:58.2]}
4. e4 {[%clk 0:03:01.1]} 4... O-O {[%clk 0:02:59.1]} 5. Bd3 {[%clk 0:03:01.3]}
5... d6 {[%clk 0:02:59.7]} 6. Nge2 {[%clk 0:03:01.7]} 6... c5 {[%clk 0:03:00.2]}
7. d5 {[%clk 0:03:00.9]} 7... e6 {[%clk 0:03:00.6]} 8. O-O {[%clk 0:03:00.4]}
8... exd5 {[%clk 0:03:01.1]} 9. exd5 {[%clk 0:03:01.3]} 9... Re8 {[%clk
0:03:00.4]} 10. h3 {[%clk 0:02:59.3]} 10... Nbd7 {[%clk 0:02:59.5]} 11. f4
{[%clk 0:02:58.5]} 11... a6 {[%clk 0:02:58.4]} 12. a4 {[%clk 0:02:57.9]} 12...
Rb8 {[%clk 0:02:52.8]} 13. Qc2 {[%clk 0:02:54.4]} 13... Nf8 {[%clk 0:02:24.9]}
14. f5 {[%clk 0:02:46.4]} 14... N8d7 {[%clk 0:02:22.3]} 15. fxg6 {[%clk
0:02:34.2]} 15... fxg6 {[%clk 0:02:20.7]} 16. Bg5 {[%clk 0:02:25.8]} 16... Ne5
{[%clk 0:02:11.4]} 17. Rae1 {[%clk 0:02:12.7]} 17... Nxd3 {[%clk 0:01:45.2]} 18.
Qxd3 {[%clk 0:02:12.2]} 18... Bf5 {[%clk 0:01:45.8]} 19. Qf3 {[%clk 0:01:53.7]}
19... h6 {[%clk 0:01:43]} 20. Bh4 {[%clk 0:01:47.9]} 20... Qd7 {[%clk 0:01:13]}
21. Ng3 {[%clk 0:01:15.2]} 21... Rxe1 {[%clk 0:00:46.2]} 22. Rxe1 {[%clk
0:01:16.1]} 22... Rf8 {[%clk 0:00:38]} 23. Nxf5 {[%clk 0:01:11.2]} 23... Qxf5
{[%clk 0:00:38.9]} 24. Qxf5 {[%clk 0:01:07.7]} 24... gxf5 {[%clk 0:00:39.8]} 25.
Re6 {[%clk 0:01:01.4]} 25... Ne4 {[%clk 0:00:40]} 26. Nxe4 {[%clk 0:00:55.7]}
26... fxe4 {[%clk 0:00:40.9]} 27. Rxe4 {[%clk 0:00:55.3]} 27... Bxb2 {[%clk
0:00:38.7]} 28. Re6 {[%clk 0:00:50.1]} 28... Bd4+ {[%clk 0:00:35.1]} 29. Kh2
{[%clk 0:00:46.4]} 29... Rf1 {[%clk 0:00:21.7]} 30. Rxh6 {[%clk 0:00:19.8]}
30... Rc1 {[%clk 0:00:20]} 31. Re6 {[%clk 0:00:17]} 31... Rxc4 {[%clk
0:00:17.8]} 32. Bg3 {[%clk 0:00:17.4]} 32... Rxa4 {[%clk 0:00:15.8]} 33. Bxd6
{[%clk 0:00:17.3]} 33... Bf2 {[%clk 0:00:15.8]} 34. Re8+ {[%clk 0:00:16.2]}
34... Kg7 {[%clk 0:00:15.2]} 35. Re7+ {[%clk 0:00:16.6]} 35... Kg6 {[%clk
0:00:14.9]} 36. Rxb7 {[%clk 0:00:17.3]} 36... Ra1 {[%clk 0:00:12.7]} 37. g4
{[%clk 0:00:15.4]} 37... Ra2 {[%clk 0:00:11.3]} 38. Kh1 {[%clk 0:00:13.4]} 38...
Bd4 {[%clk 0:00:10.1]} 39. Rc7 {[%clk 0:00:12.4]} 1-0

[Event "*** Titled Tuesday Blitz"]
[Site "Chess.com"]
[Date "2021.04.27"]
[Round "4"]
[White "Kaua18"]
[Black "enriquetejedor"]
[Result "0-1"]
[WhiteElo "2358"]
[BlackElo "2606"]
[TimeControl "180+1"]
[EndTime "10:39:38 PDT"]
[Termination "enriquetejedor won on time"]

1. e4 {[%clk 0:03:00.6]} 1... c5 {[%clk 0:02:34.4]} 2. Nf3 {[%clk 0:02:59.4]}
2... a6 {[%clk 0:02:22.8]} 3. c4 {[%clk 0:02:56.1]} 3... b5 {[%clk 0:02:10.8]}
4. cxb5 {[%clk 0:02:46.6]} 4... axb5 {[%clk 0:02:11]} 5. Bxb5 {[%clk 0:02:47.5]}
5... Bb7 {[%clk 0:02:10.8]} 6. d3 {[%clk 0:02:45.6]} 6... g6 {[%clk 0:02:04.5]}
7. O-O {[%clk 0:02:45.2]} 7... Bg7 {[%clk 0:02:04.5]} 8. Nc3 {[%clk 0:02:43.4]}
8... Nf6 {[%clk 0:02:04.4]} 9. h3 {[%clk 0:02:40.1]} 9... O-O {[%clk 0:02:03.5]}
10. Re1 {[%clk 0:02:40.1]} 10... Nc6 {[%clk 0:01:59.7]} 11. Be3 {[%clk
0:02:38.4]} 11... d6 {[%clk 0:01:59.1]} 12. d4 {[%clk 0:02:38]} 12... cxd4
{[%clk 0:01:54.7]} 13. Nxd4 {[%clk 0:02:38.9]} 13... Rc8 {[%clk 0:01:48.3]} 14.
Nxc6 {[%clk 0:02:35.8]} 14... Bxc6 {[%clk 0:01:49.2]} 15. Bxc6 {[%clk
0:02:35.9]} 15... Rxc6 {[%clk 0:01:50.1]} 16. Qd2 {[%clk 0:02:33.7]} 16... Qa5
{[%clk 0:01:45.4]} 17. Nd5 {[%clk 0:02:17.7]} 17... Qxd2 {[%clk 0:01:29.6]} 18.
Nxe7+ {[%clk 0:02:14.5]} 18... Kh8 {[%clk 0:01:29.9]} 19. Bxd2 {[%clk
0:02:15.4]} 19... Rc7 {[%clk 0:01:30]} 20. Nd5 {[%clk 0:02:10.7]} 20... Nxd5
{[%clk 0:01:30.3]} 21. exd5 {[%clk 0:02:11.6]} 21... Bxb2 {[%clk 0:01:31.1]} 22.
Rab1 {[%clk 0:01:50.2]} 22... Be5 {[%clk 0:01:30.1]} 23. Bb4 {[%clk 0:01:45.9]}
23... Rfc8 {[%clk 0:01:19.8]} 24. a3 {[%clk 0:01:42.9]} 24... Rc2 {[%clk
0:01:17.9]} 25. Rbd1 {[%clk 0:01:42]} 25... g5 {[%clk 0:01:14.6]} 26. g3 {[%clk
0:01:24]} 26... Kg7 {[%clk 0:01:12.2]} 27. Kg2 {[%clk 0:01:22.3]} 27... Kg6
{[%clk 0:01:12.2]} 28. Re3 {[%clk 0:01:08.2]} 28... h5 {[%clk 0:01:07.5]} 29.
Rd2 {[%clk 0:00:35.8]} 29... Rc1 {[%clk 0:01:02.9]} 30. Ba5 {[%clk 0:00:18.7]}
30... Ra1 {[%clk 0:00:53.6]} 31. Rxe5 {[%clk 0:00:18.5]} 31... dxe5 {[%clk
0:00:36.8]} 32. d6 {[%clk 0:00:19.4]} 32... Rcc1 {[%clk 0:00:37.4]} 33. g4
{[%clk 0:00:06.7]} 33... Rg1+ {[%clk 0:00:22.1]} 34. Kf3 {[%clk 0:00:06.6]}
34... Rxa3+ {[%clk 0:00:21.8]} 35. Ke4 {[%clk 0:00:04.1]} 35... Re1+ {[%clk
0:00:19.5]} 36. Kd5 {[%clk 0:00:03.3]} 36... Rxa5+ {[%clk 0:00:19.4]} 37. Kc6
{[%clk 0:00:04]} 37... Rc1+ {[%clk 0:00:17.7]} 38. Kb6 {[%clk 0:00:01.2]} 38...
Ra3 {[%clk 0:00:16.2]} 39. d7 {[%clk 0:00:02.1]} 39... Rb3+ {[%clk 0:00:16.1]}
40. Ka7 {[%clk 0:00:02.4]} 40... Ra1+ {[%clk 0:00:16.1]} 0-1

[Event "*** Titled Tuesday Blitz"]
[Site "Chess.com"]
[Date "2021.04.27"]
[Round "4"]
[White "InvisibleWarrior2252"]
[Black "Shahinyan_ChessMood"]
[Result "1-0"]
[WhiteElo "2579"]
[BlackElo "2792"]
[TimeControl "180+1"]
[EndTime "10:39:39 PDT"]
[Termination "InvisibleWarrior2252 won by checkmate"]

1. e4 {[%clk 0:03:00.9]} 1... d6 {[%clk 0:02:59.4]} 2. d4 {[%clk 0:03:00.8]}
2... Nf6 {[%clk 0:03:00.3]} 3. Nc3 {[%clk 0:03:00.9]} 3... e5 {[%clk 0:03:00.1]}
4. Nge2 {[%clk 0:03:00.6]} 4... Be7 {[%clk 0:02:58.4]} 5. g3 {[%clk 0:03:00.3]}
5... O-O {[%clk 0:02:58.7]} 6. Bg2 {[%clk 0:03:00.7]} 6... Nbd7 {[%clk 0:02:58]}
7. h3 {[%clk 0:03:00.3]} 7... c6 {[%clk 0:02:58.5]} 8. a4 {[%clk 0:03:00.7]}
8... Re8 {[%clk 0:02:58.9]} 9. O-O {[%clk 0:03:00.9]} 9... exd4 {[%clk
0:02:59.1]} 10. Nxd4 {[%clk 0:03:01]} 10... Bf8 {[%clk 0:03:00]} 11. Re1 {[%clk
0:02:57.7]} 11... Nc5 {[%clk 0:02:59.9]} 12. b4 {[%clk 0:02:57]} 12... Ne6
{[%clk 0:02:54.8]} 13. b5 {[%clk 0:02:47.9]} 13... Nxd4 {[%clk 0:02:50]} 14.
Qxd4 {[%clk 0:02:48.8]} 14... c5 {[%clk 0:02:49.4]} 15. Qd2 {[%clk 0:02:45.3]}
15... Be6 {[%clk 0:02:40.7]} 16. Bb2 {[%clk 0:02:43.7]} 16... Qc7 {[%clk
0:02:39.3]} 17. Rad1 {[%clk 0:02:42.6]} 17... Rad8 {[%clk 0:02:38.1]} 18. Qf4
{[%clk 0:02:36.6]} 18... Qa5 {[%clk 0:02:30.8]} 19. g4 {[%clk 0:02:22.3]} 19...
Qb4 {[%clk 0:02:27.7]} 20. Ba1 {[%clk 0:02:13]} 20... d5 {[%clk 0:02:23.4]} 21.
Rb1 {[%clk 0:02:09]} 21... Qa5 {[%clk 0:01:44.5]} 22. exd5 {[%clk 0:02:00.8]}
22... Bd6 {[%clk 0:01:41]} 23. Qc1 {[%clk 0:01:02.3]} 23... Bd7 {[%clk 0:01:37]}
24. Ne2 {[%clk 0:00:54.3]} 24... Ne4 {[%clk 0:01:21.4]} 25. c4 {[%clk
0:00:25.4]} 25... Nd2 {[%clk 0:01:09.6]} 26. Bc3 {[%clk 0:00:24.1]} 26... Qxa4
{[%clk 0:00:53.9]} 27. Qxd2 {[%clk 0:00:22.3]} 27... Qxc4 {[%clk 0:00:52.2]} 28.
b6 {[%clk 0:00:18.8]} 28... a6 {[%clk 0:00:49.9]} 29. Ng3 {[%clk 0:00:16.4]}
29... Bf4 {[%clk 0:00:44.8]} 30. Qb2 {[%clk 0:00:14.7]} 30... f6 {[%clk
0:00:41.2]} 31. Ne4 {[%clk 0:00:14.5]} 31... Rf8 {[%clk 0:00:29.9]} 32. Rbd1
{[%clk 0:00:10.6]} 32... Ba4 {[%clk 0:00:28.5]} 33. Bf1 {[%clk 0:00:08.7]} 33...
Qb3 {[%clk 0:00:24.5]} 34. Qxb3 {[%clk 0:00:09]} 34... Bxb3 {[%clk 0:00:25.4]}
35. Rd3 {[%clk 0:00:09.5]} 35... Rxd5 {[%clk 0:00:22.8]} 36. Rxd5 {[%clk
0:00:07.5]} 36... Bxd5 {[%clk 0:00:23.7]} 37. Bg2 {[%clk 0:00:07.8]} 37... Rc8
{[%clk 0:00:21]} 38. Nxf6+ {[%clk 0:00:06.8]} 38... gxf6 {[%clk 0:00:19.1]} 39.
Bxd5+ {[%clk 0:00:07.7]} 39... Kg7 {[%clk 0:00:17.6]} 40. Re7+ {[%clk
0:00:07.1]} 40... Kg6 {[%clk 0:00:18.2]} 41. Be4+ {[%clk 0:00:06.4]} 41... Kg5
{[%clk 0:00:16.7]} 42. Rg7+ {[%clk 0:00:06]} 42... Kh4 {[%clk 0:00:16.8]} 43.
Rxh7+ {[%clk 0:00:06.7]} 43... Kg5 {[%clk 0:00:17.2]} 44. Rh5# {[%clk
0:00:07.5]} 1-0

[Event "*** Titled Tuesday Blitz"]
[Site "Chess.com"]
[Date "2021.04.27"]
[Round "4"]
[White "Raud100"]
[Black "LordIron"]
[Result "1-0"]
[WhiteElo "2454"]
[BlackElo "2260"]
[TimeControl "180+1"]
[EndTime "10:39:40 PDT"]
[Termination "Raud100 won on time"]

1. d4 {[%clk 0:03:00.9]} 1... d5 {[%clk 0:02:59.2]} 2. c4 {[%clk 0:03:00.4]}
2... c6 {[%clk 0:02:59.2]} 3. Nf3 {[%clk 0:02:59.9]} 3... Nf6 {[%clk 0:02:59.8]}
4. Nc3 {[%clk 0:03:00.3]} 4... g6 {[%clk 0:02:59.2]} 5. Bg5 {[%clk 0:02:59.4]}
5... Bg7 {[%clk 0:02:59.4]} 6. e3 {[%clk 0:02:59.6]} 6... O-O {[%clk 0:02:59.9]}
7. Rc1 {[%clk 0:02:59]} 7... Nbd7 {[%clk 0:02:56.5]} 8. Bd3 {[%clk 0:02:56.6]}
8... dxc4 {[%clk 0:02:54]} 9. Bxc4 {[%clk 0:02:56.2]} 9... Qa5 {[%clk
0:02:51.5]} 10. O-O {[%clk 0:02:53.5]} 10... e5 {[%clk 0:02:50.7]} 11. Bh4
{[%clk 0:02:36.7]} 11... exd4 {[%clk 0:02:41.3]} 12. Nxd4 {[%clk 0:02:37.6]}
12... Ne5 {[%clk 0:02:35.7]} 13. Bb3 {[%clk 0:02:35.7]} 13... c5 {[%clk
0:02:24.9]} 14. Ndb5 {[%clk 0:02:20.6]} 14... Rd8 {[%clk 0:02:17.3]} 15. Qe2
{[%clk 0:02:17.1]} 15... a6 {[%clk 0:02:17.5]} 16. Na3 {[%clk 0:02:10.6]} 16...
b5 {[%clk 0:02:17.7]} 17. Rfd1 {[%clk 0:01:48]} 17... Bb7 {[%clk 0:01:55.4]} 18.
Nab1 {[%clk 0:01:19.8]} 18... c4 {[%clk 0:01:38]} 19. Bc2 {[%clk 0:01:18.1]}
19... b4 {[%clk 0:01:38]} 20. Bxf6 {[%clk 0:00:55.3]} 20... Bxf6 {[%clk
0:01:26.5]} 21. Ne4 {[%clk 0:00:55.1]} 21... Bg7 {[%clk 0:01:25.7]} 22. Nd6
{[%clk 0:00:52.3]} 22... Bd5 {[%clk 0:01:02.5]} 23. Ne4 {[%clk 0:00:21.8]} 23...
Qxa2 {[%clk 0:00:40.7]} 24. Nbd2 {[%clk 0:00:17.7]} 24... Qxb2 {[%clk
0:00:33.1]} 25. Qe1 {[%clk 0:00:09]} 25... c3 {[%clk 0:00:18]} 26. Nf3 {[%clk
0:00:08.8]} 26... Nxf3+ {[%clk 0:00:16.5]} 27. gxf3 {[%clk 0:00:09.7]} 27... Ba2
{[%clk 0:00:11.5]} 28. Bd3 {[%clk 0:00:05.7]} 28... Rac8 {[%clk 0:00:08.8]} 29.
Bxa6 {[%clk 0:00:04.7]} 29... Ra8 {[%clk 0:00:07.9]} 30. Bd3 {[%clk 0:00:02.8]}
30... Rac8 {[%clk 0:00:06]} 31. Rc2 {[%clk 0:00:03.3]} 31... Qb3 {[%clk
0:00:05]} 32. Qe2 {[%clk 0:00:03.4]} 32... Bb1 {[%clk 0:00:03.6]} 33. Rcc1
{[%clk 0:00:02.8]} 33... Bxd3 {[%clk 0:00:02.5]} 34. Rxd3 {[%clk 0:00:03.7]}
34... Rxd3 {[%clk 0:00:02.3]} 35. Qxd3 {[%clk 0:00:04.6]} 35... Qe6 {[%clk
0:00:02.7]} 36. Qb5 {[%clk 0:00:02.6]} 36... b3 {[%clk 0:00:02.4]} 37. Nxc3
{[%clk 0:00:02.7]} 37... Rxc3 {[%clk 0:00:02.2]} 38. Qb8+ {[%clk 0:00:02.2]}
38... Bf8 {[%clk 0:00:01.8]} 39. Rxc3 {[%clk 0:00:02.7]} 39... Qe5 {[%clk
0:00:02.1]} 40. Rxb3 {[%clk 0:00:02.8]} 1-0

[Event "*** Titled Tuesday Blitz"]
[Site "Chess.com"]
[Date "2021.04.27"]
[Round "4"]
[White "AlexTriapishko"]
[Black "Kretov_Evgenij"]
[Result "1-0"]
[WhiteElo "2868"]
[BlackElo "2654"]
[TimeControl "180+1"]
[EndTime "10:39:44 PDT"]
[Termination "AlexTriapishko won by resignation"]

1. c4 {[%clk 0:02:58.6]} 1... Nf6 {[%clk 0:02:59.9]} 2. Nc3 {[%clk 0:02:56.5]}
2... c5 {[%clk 0:02:59.9]} 3. Nf3 {[%clk 0:02:54.8]} 3... e6 {[%clk 0:02:59.2]}
4. g3 {[%clk 0:02:51.9]} 4... b6 {[%clk 0:02:59.3]} 5. Bg2 {[%clk 0:02:51.6]}
5... Bb7 {[%clk 0:02:59.2]} 6. O-O {[%clk 0:02:52.5]} 6... Be7 {[%clk
0:02:58.6]} 7. d4 {[%clk 0:02:53.1]} 7... cxd4 {[%clk 0:02:58.3]} 8. Qxd4 {[%clk
0:02:53.7]} 8... d6 {[%clk 0:02:58.3]} 9. Bg5 {[%clk 0:02:45.2]} 9... a6 {[%clk
0:02:55.4]} 10. Rfd1 {[%clk 0:02:36.9]} 10... Nbd7 {[%clk 0:02:54.6]} 11. Qd2
{[%clk 0:02:36.6]} 11... O-O {[%clk 0:02:51.6]} 12. Bf4 {[%clk 0:02:36.4]} 12...
Ne8 {[%clk 0:02:50.6]} 13. Rac1 {[%clk 0:02:35.3]} 13... Rc8 {[%clk 0:02:49.7]}
14. b3 {[%clk 0:02:35.7]} 14... Qc7 {[%clk 0:02:47.3]} 15. e4 {[%clk 0:02:35.4]}
15... Ne5 {[%clk 0:02:39.8]} 16. Qe2 {[%clk 0:02:27.4]} 16... Nf6 {[%clk
0:02:31]} 17. Nd2 {[%clk 0:02:20.7]} 17... Rfd8 {[%clk 0:02:27.4]} 18. h3 {[%clk
0:02:18.5]} 18... h6 {[%clk 0:02:26.4]} 19. Be3 {[%clk 0:02:18.7]} 19... Ned7
{[%clk 0:02:20.7]} 20. g4 {[%clk 0:02:09.8]} 20... Qb8 {[%clk 0:02:18.6]} 21. h4
{[%clk 0:02:03.8]} 21... Ne5 {[%clk 0:02:12.3]} 22. g5 {[%clk 0:01:28.3]} 22...
hxg5 {[%clk 0:02:08.2]} 23. hxg5 {[%clk 0:01:28.8]} 23... Nfd7 {[%clk 0:02:07]}
24. f4 {[%clk 0:01:27.1]} 24... Ng6 {[%clk 0:02:05.5]} 25. Nf3 {[%clk
0:01:18.5]} 25... Nc5 {[%clk 0:01:59.6]} 26. f5 {[%clk 0:01:15.1]} 26... exf5
{[%clk 0:01:56.2]} 27. exf5 {[%clk 0:01:13.8]} 27... Ne5 {[%clk 0:01:50.6]} 28.
Nxe5 {[%clk 0:01:09.5]} 28... dxe5 {[%clk 0:01:49.3]} 29. g6 {[%clk 0:01:06.6]}
29... e4 {[%clk 0:01:33.8]} 30. Qh5 {[%clk 0:01:01.4]} 30... Bf6 {[%clk
0:01:25.2]} 31. Nd5 {[%clk 0:00:13.7]} 31... Bxd5 {[%clk 0:01:22.2]} 32. Rxd5
{[%clk 0:00:12.3]} 32... Qg3 {[%clk 0:01:11.5]} 33. Bf2 {[%clk 0:00:08.3]} 33...
Qg5 {[%clk 0:00:59.9]} 34. gxf7+ {[%clk 0:00:05.8]} 34... Kf8 {[%clk 0:00:59.8]}
35. Qxg5 {[%clk 0:00:05.7]} 35... Bxg5 {[%clk 0:00:59.7]} 36. Bxc5+ {[%clk
0:00:04.6]} 36... bxc5 {[%clk 0:00:58.3]} 37. Rcd1 {[%clk 0:00:03.5]} 37... Rxd5
{[%clk 0:00:53.3]} 38. cxd5 {[%clk 0:00:03.9]} 38... e3 {[%clk 0:00:51.2]} 39.
Kf1 {[%clk 0:00:04.3]} 39... Kxf7 {[%clk 0:00:49.8]} 40. d6 {[%clk 0:00:04.9]}
40... Rd8 {[%clk 0:00:49.4]} 41. Ke2 {[%clk 0:00:04.9]} 41... Bf4 {[%clk
0:00:48.7]} 42. d7 {[%clk 0:00:05.4]} 42... Ke7 {[%clk 0:00:48.4]} 43. Bc6
{[%clk 0:00:05.6]} 43... Kf6 {[%clk 0:00:44.8]} 44. Kf3 {[%clk 0:00:05.5]} 44...
Kxf5 {[%clk 0:00:41.8]} 45. Rd5+ {[%clk 0:00:05.7]} 45... Kf6 {[%clk 0:00:32.9]}
46. Kxf4 {[%clk 0:00:05.5]} 46... e2 {[%clk 0:00:32.9]} 47. Rf5+ {[%clk
0:00:05.9]} 47... Kg6 {[%clk 0:00:31.7]} 48. Re5 {[%clk 0:00:06.3]} 48... Rf8+
{[%clk 0:00:31.6]} 49. Kg4 {[%clk 0:00:06.2]} 1-0

[Event "*** Titled Tuesday Blitz"]
[Site "Chess.com"]
[Date "2021.04.27"]
[Round "4"]
[White "The_Machine04"]
[Black "suyu28"]
[Result "0-1"]
[WhiteElo "2445"]
[BlackElo "2632"]
[TimeControl "180+1"]
[EndTime "10:39:44 PDT"]
[Termination "suyu28 won by checkmate"]

1. d4 {[%clk 0:03:00.9]} 1... d5 {[%clk 0:02:58.6]} 2. Bf4 {[%clk 0:03:00]} 2...
Nf6 {[%clk 0:02:58.3]} 3. e3 {[%clk 0:02:59.8]} 3... g6 {[%clk 0:02:53.9]} 4.
Nc3 {[%clk 0:02:58]} 4... Bg7 {[%clk 0:02:53.6]} 5. h4 {[%clk 0:02:57.6]} 5...
h6 {[%clk 0:02:52.3]} 6. Nf3 {[%clk 0:02:56.5]} 6... O-O {[%clk 0:02:52]} 7. Ne5
{[%clk 0:02:56.5]} 7... c5 {[%clk 0:02:51.8]} 8. h5 {[%clk 0:02:49.2]} 8... g5
{[%clk 0:02:42.5]} 9. Bxg5 {[%clk 0:02:49.5]} 9... hxg5 {[%clk 0:02:42.5]} 10.
h6 {[%clk 0:02:50.4]} 10... Nc6 {[%clk 0:02:33.5]} 11. hxg7 {[%clk 0:02:26.3]}
11... Kxg7 {[%clk 0:02:33.5]} 12. Nxc6 {[%clk 0:02:05.9]} 12... bxc6 {[%clk
0:02:31.9]} 13. Qf3 {[%clk 0:02:06.8]} 13... Rh8 {[%clk 0:02:21.2]} 14. Rxh8
{[%clk 0:02:05.3]} 14... Qxh8 {[%clk 0:02:22.1]} 15. O-O-O {[%clk 0:02:00.4]}
15... Bg4 {[%clk 0:02:19.8]} 16. Qg3 {[%clk 0:01:59.9]} 16... Bxd1 {[%clk
0:02:20]} 17. Qxg5+ {[%clk 0:01:59.7]} 17... Kf8 {[%clk 0:02:20.4]} 18. Nxd1
{[%clk 0:01:58.5]} 18... cxd4 {[%clk 0:02:19.8]} 19. exd4 {[%clk 0:01:57.3]}
19... Ne4 {[%clk 0:02:18.2]} 20. Qf4 {[%clk 0:01:53.6]} 20... Qxd4 {[%clk
0:02:13]} 21. f3 {[%clk 0:01:41.5]} 21... Qf6 {[%clk 0:02:12.4]} 22. Qc7 {[%clk
0:01:29.1]} 22... Qh6+ {[%clk 0:02:01.5]} 23. f4 {[%clk 0:01:23.1]} 23... Qd6
{[%clk 0:01:57.6]} 24. Qxd6 {[%clk 0:01:19]} 24... exd6 {[%clk 0:01:57.9]} 25.
Bd3 {[%clk 0:01:19.4]} 25... f5 {[%clk 0:01:57.5]} 26. Ne3 {[%clk 0:01:18.9]}
26... Ng3 {[%clk 0:01:56.5]} 27. Nxf5 {[%clk 0:01:18.1]} 27... Nxf5 {[%clk
0:01:56.3]} 28. Bxf5 {[%clk 0:01:19]} 28... Ke7 {[%clk 0:01:55.5]} 29. Kd2
{[%clk 0:01:09.9]} 29... Rh8 {[%clk 0:01:53.7]} 30. Bh3 {[%clk 0:01:09.1]} 30...
Kf6 {[%clk 0:01:51.9]} 31. Ke3 {[%clk 0:01:08.4]} 31... c5 {[%clk 0:01:51.6]}
32. b3 {[%clk 0:01:05]} 32... d4+ {[%clk 0:01:48.6]} 33. Ke4 {[%clk 0:00:48.5]}
33... Re8+ {[%clk 0:01:48.7]} 34. Kf3 {[%clk 0:00:48.6]} 34... Re3+ {[%clk
0:01:48.6]} 35. Kf2 {[%clk 0:00:48.8]} 35... Rc3 {[%clk 0:01:49.2]} 36. Bd7
{[%clk 0:00:43.6]} 36... Rxc2+ {[%clk 0:01:49.3]} 37. Kf3 {[%clk 0:00:44.5]}
37... d3 {[%clk 0:01:39.2]} 38. g4 {[%clk 0:00:41.6]} 38... d5 {[%clk
0:01:31.6]} 39. g5+ {[%clk 0:00:33.4]} 39... Ke7 {[%clk 0:01:31.7]} 40. Bf5
{[%clk 0:00:33.2]} 40... Rc3 {[%clk 0:01:25.8]} 41. Ke3 {[%clk 0:00:26.5]} 41...
c4 {[%clk 0:01:25.1]} 42. bxc4 {[%clk 0:00:21.4]} 42... dxc4 {[%clk 0:01:25.2]}
43. Bg4 {[%clk 0:00:20]} 43... Rc2 {[%clk 0:01:22.6]} 44. f5 {[%clk 0:00:17.6]}
44... Rg2 {[%clk 0:01:22.3]} 45. f6+ {[%clk 0:00:15.3]} 45... Kf8 {[%clk
0:01:19.9]} 46. Be6 {[%clk 0:00:15.7]} 46... d2 {[%clk 0:01:15.1]} 47. g6 {[%clk
0:00:07.1]} 47... d1=Q {[%clk 0:01:06.6]} 48. g7+ {[%clk 0:00:08]} 48... Rxg7
{[%clk 0:01:06.8]} 49. fxg7+ {[%clk 0:00:08.9]} 49... Kxg7 {[%clk 0:01:07.7]}
50. Bxc4 {[%clk 0:00:09.5]} 50... Kf6 {[%clk 0:01:08]} 51. Bb3 {[%clk
0:00:09.1]} 51... Qc1+ {[%clk 0:01:08.2]} 52. Kd4 {[%clk 0:00:09.4]} 52... a5
{[%clk 0:01:07.3]} 53. Kd5 {[%clk 0:00:09.3]} 53... Kf5 {[%clk 0:01:06.7]} 54.
Kd4 {[%clk 0:00:08.7]} 54... Kf4 {[%clk 0:01:07.3]} 55. Kd5 {[%clk 0:00:08.9]}
55... Ke3 {[%clk 0:01:07.7]} 56. Kd6 {[%clk 0:00:08]} 56... Kd3 {[%clk
0:01:08.3]} 57. Kd5 {[%clk 0:00:08.2]} 57... Qc3 {[%clk 0:01:08.1]} 58. Kd6
{[%clk 0:00:07.3]} 58... Kd2 {[%clk 0:01:08.6]} 59. Kd5 {[%clk 0:00:07.6]} 59...
Kc1 {[%clk 0:01:09.3]} 60. Kd6 {[%clk 0:00:08.2]} 60... Kb2 {[%clk 0:01:10]} 61.
Kd5 {[%clk 0:00:08.9]} 61... Qb4 {[%clk 0:01:09.8]} 62. Kc6 {[%clk 0:00:07.7]}
62... a4 {[%clk 0:01:10.4]} 63. Bd5 {[%clk 0:00:07.4]} 63... a3 {[%clk
0:01:10.8]} 64. Kd7 {[%clk 0:00:07.5]} 64... Ka1 {[%clk 0:01:11.2]} 65. Ke6
{[%clk 0:00:08.4]} 65... Qb2 {[%clk 0:01:11.8]} 66. Kd6 {[%clk 0:00:07.3]} 66...
Qxa2 {[%clk 0:01:12.5]} 67. Bxa2 {[%clk 0:00:07.8]} 67... Kxa2 {[%clk
0:01:13.4]} 68. Kc5 {[%clk 0:00:08.3]} 68... Kb2 {[%clk 0:01:14.3]} 69. Kb4
{[%clk 0:00:09.2]} 69... a2 {[%clk 0:01:15.2]} 70. Kc4 {[%clk 0:00:09.7]} 70...
a1=Q {[%clk 0:01:16.1]} 71. Kc5 {[%clk 0:00:10.6]} 71... Qc1+ {[%clk 0:01:17]}
72. Kb4 {[%clk 0:00:11.1]} 72... Qc3+ {[%clk 0:01:17.9]} 73. Ka4 {[%clk
0:00:11.6]} 73... Qb3+ {[%clk 0:01:17.6]} 74. Ka5 {[%clk 0:00:12.1]} 74... Kc3
{[%clk 0:01:18.1]} 75. Ka6 {[%clk 0:00:13]} 75... Kd4 {[%clk 0:01:19]} 76. Ka7
{[%clk 0:00:13.9]} 76... Kd5 {[%clk 0:01:19.9]} 77. Ka6 {[%clk 0:00:14]} 77...
Kc6 {[%clk 0:01:20.8]} 78. Ka5 {[%clk 0:00:14.4]} 78... Qa3# {[%clk 0:01:21.3]}
0-1